[Event "Titled Tuesday Blitz August 3 2021"]
[White "Timmermans, Mark"]
[Black "Omk124"]
[WhiteFideId "1026399"]
[WhiteElo "2460"]
[BlackElo "2521"]
[Result "1-0"]
[Round "02"]
[TimeControl "180+1"]
[Date "2021.08.03"]
[WhiteClock "0:00:52"]
[BlackClock "0:00:20"]

1. b4 {[%clk 0:03:00]}  e5 {[%clk 0:02:59]} 2. Bb2 {[%clk 0:02:59]}  Bxb4 {[%clk 0:02:59]} 3. Bxe5 {[%clk 0:02:58]}  Nf6 {[%clk 0:02:59]} 4. Nc3 {[%clk 0:02:57]}  Nc6 {[%clk 0:02:58]} 5. Bxf6 {[%clk 0:02:58]}  Qxf6 {[%clk 0:02:58]} 6. Nd5 {[%clk 0:02:58]}  Qd6 {[%clk 0:02:56]} 7. c4 {[%clk 0:02:58]}  O-O {[%clk 0:02:52]} 8. Nf3 {[%clk 0:02:58]}  Ne7 {[%clk 0:02:51]} 9. Nxe7+ {[%clk 0:02:56]}  Qxe7 {[%clk 0:02:51]} 10. e3 {[%clk 0:02:57]}  c6 {[%clk 0:02:51]} 11. Be2 {[%clk 0:02:57]}  d5 {[%clk 0:02:51]} 12. cxd5 {[%clk 0:02:58]}  cxd5 {[%clk 0:02:52]} 13. O-O {[%clk 0:02:59]}  Bf5 {[%clk 0:02:52]} 14. Nd4 {[%clk 0:02:59]}  Bg6 {[%clk 0:02:51]} 15. Bf3 {[%clk 0:02:48]}  Be4 {[%clk 0:02:47]} 16. d3 {[%clk 0:02:45]}  Bxf3 {[%clk 0:02:46]} 17. Qxf3 {[%clk 0:02:46]}  Bc3 {[%clk 0:02:44]} 18. Nf5 {[%clk 0:02:46]}  Qf6 {[%clk 0:02:39]} 19. Rab1 {[%clk 0:02:45]}  g6 {[%clk 0:02:30]} 20. Nh6+ {[%clk 0:02:45]}  Kg7 {[%clk 0:02:30]} 21. Ng4 {[%clk 0:02:45]}  Qxf3 {[%clk 0:02:30]} 22. gxf3 {[%clk 0:02:46]}  b6 {[%clk 0:02:30]} 23. Rfc1 {[%clk 0:02:45]}  Rfc8 {[%clk 0:02:28]} 24. d4 {[%clk 0:02:43]}  f6 {[%clk 0:02:26]} 25. Rc2 {[%clk 0:02:12]}  Rc4 {[%clk 0:02:15]} 26. h3 {[%clk 0:02:02]}  Rac8 {[%clk 0:02:12]} 27. f4 {[%clk 0:02:01]}  h5 {[%clk 0:02:06]} 28. Nh2 {[%clk 0:02:01]}  Kf7 {[%clk 0:02:05]} 29. Re2 {[%clk 0:01:39]}  Bb4 {[%clk 0:02:00]} 30. Kg2 {[%clk 0:01:37]}  R8c6 {[%clk 0:01:55]} 31. Nf3 {[%clk 0:01:25]}  a5 {[%clk 0:01:52]} 32. Reb2 {[%clk 0:01:20]}  Rc2 {[%clk 0:01:50]} 33. Rxc2 {[%clk 0:01:21]}  Rxc2 {[%clk 0:01:51]} 34. a3 {[%clk 0:01:22]}  Bxa3 {[%clk 0:01:48]} 35. Rxb6 {[%clk 0:01:21]}  Bb2 {[%clk 0:01:45]} 36. Ra6 {[%clk 0:01:18]}  Bc3 {[%clk 0:01:44]} 37. Rc6 {[%clk 0:01:16]}  Rc1 {[%clk 0:01:35]} 38. f5 {[%clk 0:01:11]}  gxf5 {[%clk 0:01:33]} 39. Nh4 {[%clk 0:01:12]}  a4 {[%clk 0:01:32]} 40. Nxf5 {[%clk 0:01:09]}  a3 {[%clk 0:01:32]} 41. Ra6 {[%clk 0:01:08]}  Bb2 {[%clk 0:01:23]} 42. Ng3 {[%clk 0:01:08]}  Rc2 {[%clk 0:01:19]} 43. Nxh5 {[%clk 0:01:06]}  f5 {[%clk 0:01:18]} 44. Nf4 {[%clk 0:01:03]}  Bc1 {[%clk 0:00:43]} 45. Kf3 {[%clk 0:01:03]}  a2 {[%clk 0:00:35]} 46. Nxd5 {[%clk 0:01:04]}  Bd2 {[%clk 0:00:35]} 47. Kf4 {[%clk 0:01:02]}  Be1 {[%clk 0:00:34]} 48. f3 {[%clk 0:01:00]}  Rf2 {[%clk 0:00:27]} 49. Kxf5 {[%clk 0:00:53]}  Rxf3+ {[%clk 0:00:26]} 50. Ke4 {[%clk 0:00:54]}  Rf2 {[%clk 0:00:27]} 51. Ra7+ {[%clk 0:00:54]}  Ke6 {[%clk 0:00:26]} 52. Nf4+ {[%clk 0:00:52]}  Kd6 {[%clk 0:00:22]} 53. Nd3 {[%clk 0:00:52]}  Re2 {[%clk 0:00:20]} 1-0


[Site "https://www.chess.com"]

[Event "Titled Tuesday Blitz August 3 2021"]
[White "Vasquez Schroeder, Rodrigo"]
[Black "Barria Zuniga, Daniel"]
[WhiteFideId "3400042"]
[BlackFideId "3400816"]
[WhiteElo "2572"]
[BlackElo "2414"]
[Result "1-0"]
[Round "02"]
[TimeControl "180+1"]
[Date "2021.08.03"]
[WhiteClock "0:00:59"]
[BlackClock "0:00:03"]

1. Nf3 {[%clk 0:03:00]}  g6 {[%clk 0:02:52]} 2. d4 {[%clk 0:02:53]}  Bg7 {[%clk 0:02:52]} 3. c4 {[%clk 0:02:52]}  c5 {[%clk 0:02:49]} 4. d5 {[%clk 0:02:50]}  e6 {[%clk 0:02:48]} 5. Nc3 {[%clk 0:02:49]}  exd5 {[%clk 0:02:48]} 6. Nxd5 {[%clk 0:02:46]}  d6 {[%clk 0:02:40]} 7. g3 {[%clk 0:02:45]}  Nf6 {[%clk 0:02:36]} 8. Bg5 {[%clk 0:02:37]}  h6 {[%clk 0:02:34]} 9. Bxf6 {[%clk 0:02:37]}  Bxf6 {[%clk 0:02:35]} 10. Qd2 {[%clk 0:02:37]}  Bg7 {[%clk 0:02:30]} 11. Bg2 {[%clk 0:02:35]}  O-O {[%clk 0:02:30]} 12. O-O {[%clk 0:02:36]}  Nc6 {[%clk 0:02:31]} 13. Rad1 {[%clk 0:02:34]}  Be6 {[%clk 0:02:25]} 14. b3 {[%clk 0:02:33]}  Bxd5 {[%clk 0:02:24]} 15. Qxd5 {[%clk 0:02:33]}  Nb4 {[%clk 0:02:24]} 16. Qd2 {[%clk 0:02:32]}  Qa5 {[%clk 0:02:23]} 17. a4 {[%clk 0:02:30]}  Rad8 {[%clk 0:02:22]} 18. Nh4 {[%clk 0:02:26]}  Rd7 {[%clk 0:02:16]} 19. Bd5 {[%clk 0:02:20]}  Kh7 {[%clk 0:02:04]} 20. Ng2 {[%clk 0:02:14]}  Re8 {[%clk 0:01:37]} 21. e3 {[%clk 0:02:11]}  Qb6 {[%clk 0:01:26]} 22. Bf3 {[%clk 0:02:06]}  a6 {[%clk 0:01:05]} 23. Nf4 {[%clk 0:02:05]}  Nc6 {[%clk 0:00:45]} 24. Rb1 {[%clk 0:01:55]}  Qa5 {[%clk 0:00:33]} 25. Qd1 {[%clk 0:01:48]}  Ne5 {[%clk 0:00:25]} 26. Bd5 {[%clk 0:01:45]}  b5 {[%clk 0:00:23]} 27. axb5 {[%clk 0:01:39]}  axb5 {[%clk 0:00:24]} 28. Qe2 {[%clk 0:01:20]}  Rb8 {[%clk 0:00:20]} 29. Rfd1 {[%clk 0:01:18]}  Ra7 {[%clk 0:00:19]} 30. Kg2 {[%clk 0:01:05]}  Qa2 {[%clk 0:00:15]} 31. Rb2 {[%clk 0:01:04]}  Qa6 {[%clk 0:00:13]} 32. Rc2 {[%clk 0:01:00]}  bxc4 {[%clk 0:00:11]} 33. bxc4 {[%clk 0:01:01]}  Rb3 {[%clk 0:00:09]} 34. h4 {[%clk 0:01:01]}  Qb6 {[%clk 0:00:04]} 35. Be4 {[%clk 0:01:00]}  Raa3 {[%clk 0:00:03]} 36. h5 {[%clk 0:00:59]} 1-0


[Site "https://www.chess.com"]

[Event "Titled Tuesday Blitz August 3 2021"]
[White "Vlassov, Nikolai"]
[Black "Belous, Vladimir"]
[WhiteFideId "4103360"]
[BlackFideId "4174003"]
[WhiteElo "2407"]
[BlackElo "2510"]
[Result "1-0"]
[Round "02"]
[TimeControl "180+1"]
[Date "2021.08.03"]
[WhiteClock "0:01:28"]
[BlackClock "0:00:20"]

1. e4 {[%clk 0:03:00]}  c5 {[%clk 0:03:00]} 2. c3 {[%clk 0:03:00]}  Nf6 {[%clk 0:02:58]} 3. e5 {[%clk 0:03:01]}  Nd5 {[%clk 0:02:58]} 4. d4 {[%clk 0:03:02]}  cxd4 {[%clk 0:02:58]} 5. cxd4 {[%clk 0:03:03]}  Nc6 {[%clk 0:02:58]} 6. Nc3 {[%clk 0:03:02]}  Nxc3 {[%clk 0:02:54]} 7. bxc3 {[%clk 0:03:03]}  d5 {[%clk 0:02:54]} 8. Bd3 {[%clk 0:03:03]}  g6 {[%clk 0:02:47]} 9. h4 {[%clk 0:03:03]}  h6 {[%clk 0:02:38]} 10. h5 {[%clk 0:03:02]}  g5 {[%clk 0:02:38]} 11. f4 {[%clk 0:03:02]}  gxf4 {[%clk 0:02:36]} 12. Bxf4 {[%clk 0:03:01]}  Rg8 {[%clk 0:02:30]} 13. Qd2 {[%clk 0:03:01]}  Qa5 {[%clk 0:02:29]} 14. g3 {[%clk 0:02:58]}  Bg4 {[%clk 0:02:21]} 15. Rb1 {[%clk 0:02:53]}  O-O-O {[%clk 0:01:44]} 16. Ne2 {[%clk 0:02:53]}  f6 {[%clk 0:01:39]} 17. exf6 {[%clk 0:02:46]}  exf6 {[%clk 0:01:39]} 18. Nc1 {[%clk 0:02:37]}  Bd6 {[%clk 0:01:31]} 19. Nb3 {[%clk 0:02:28]}  Qa3 {[%clk 0:01:23]} 20. Nc5 {[%clk 0:02:23]}  Bxc5 {[%clk 0:01:20]} 21. dxc5 {[%clk 0:02:23]}  Qxc5 {[%clk 0:01:17]} 22. Kf1 {[%clk 0:02:12]}  Bf3 {[%clk 0:00:59]} 23. Bf5+ {[%clk 0:02:06]}  Rd7 {[%clk 0:01:00]} 24. Bxd7+ {[%clk 0:02:05]}  Kxd7 {[%clk 0:01:01]} 25. Rxb7+ {[%clk 0:02:05]}  Ke6 {[%clk 0:01:01]} 26. Rh2 {[%clk 0:01:58]}  Be4 {[%clk 0:00:57]} 27. Bxh6 {[%clk 0:01:54]}  Rxg3 {[%clk 0:00:55]} 28. Rf2 {[%clk 0:01:48]}  Rh3 {[%clk 0:00:44]} 29. Rxf6+ {[%clk 0:01:41]}  Kxf6 {[%clk 0:00:44]} 30. Qg5+ {[%clk 0:01:33]}  Ke6 {[%clk 0:00:41]} 31. Qg8+ {[%clk 0:01:32]}  Ke5 {[%clk 0:00:37]} 32. Qg7+ {[%clk 0:01:32]}  Kf5 {[%clk 0:00:20]} 33. Rf7+ {[%clk 0:01:28]}  Ke6 {[%clk 0:00:20]} 34. Qf6# {[%clk 0:01:28]} 1-0


[Site "https://www.chess.com"]

[Event "Titled Tuesday Blitz August 3 2021"]
[White "Wei, Yi"]
[Black "Pham, Le Thao Nguyen"]
[WhiteFideId "8603405"]
[BlackFideId "12401226"]
[WhiteElo "2686"]
[BlackElo "2286"]
[Result "1-0"]
[Round "02"]
[TimeControl "180+1"]
[Date "2021.08.03"]
[WhiteClock "0:00:41"]
[BlackClock "0:00:08"]

1. b3 {[%clk 0:02:59]}  d5 {[%clk 0:02:59]} 2. Bb2 {[%clk 0:02:59]}  c5 {[%clk 0:02:57]} 3. e3 {[%clk 0:02:59]}  Nc6 {[%clk 0:02:56]} 4. Nf3 {[%clk 0:02:59]}  Qc7 {[%clk 0:02:55]} 5. Bb5 {[%clk 0:02:59]}  a6 {[%clk 0:02:54]} 6. Bxc6+ {[%clk 0:02:59]}  Qxc6 {[%clk 0:02:52]} 7. O-O {[%clk 0:03:00]}  Nf6 {[%clk 0:02:51]} 8. Ne5 {[%clk 0:03:00]}  Qc7 {[%clk 0:02:50]} 9. d3 {[%clk 0:03:00]}  h5 {[%clk 0:02:49]} 10. f4 {[%clk 0:02:55]}  h4 {[%clk 0:02:48]} 11. Nd2 {[%clk 0:02:53]}  h3 {[%clk 0:02:47]} 12. g4 {[%clk 0:02:47]}  b6 {[%clk 0:02:36]} 13. g5 {[%clk 0:02:46]}  Nd7 {[%clk 0:02:31]} 14. Ndf3 {[%clk 0:02:45]}  f6 {[%clk 0:02:28]} 15. Ng6 {[%clk 0:02:42]}  Rh7 {[%clk 0:02:21]} 16. Nfh4 {[%clk 0:02:20]}  Nb8 {[%clk 0:02:08]} 17. Qf3 {[%clk 0:02:18]}  Qd7 {[%clk 0:02:03]} 18. Qg3 {[%clk 0:02:02]}  Nc6 {[%clk 0:01:45]} 19. f5 {[%clk 0:01:50]}  Bb7 {[%clk 0:01:36]} 20. Nxf8 {[%clk 0:01:50]}  Kxf8 {[%clk 0:01:35]} 21. Ng6+ {[%clk 0:01:50]}  Kg8 {[%clk 0:01:23]} 22. Rf4 {[%clk 0:01:47]}  Rh5 {[%clk 0:01:14]} 23. Rg4 {[%clk 0:01:27]}  Qxf5 {[%clk 0:01:12]} 24. gxf6 {[%clk 0:01:26]}  exf6 {[%clk 0:01:09]} 25. Ne7+ {[%clk 0:00:55]}  Nxe7 {[%clk 0:01:05]} 26. Rxg7+ {[%clk 0:00:55]}  Kf8 {[%clk 0:01:05]} 27. Rf1 {[%clk 0:00:55]}  Rh7 {[%clk 0:00:34]} 28. Rg4 {[%clk 0:00:45]}  Qxg4 {[%clk 0:00:28]} 29. Qxg4 {[%clk 0:00:45]}  Rg7 {[%clk 0:00:28]} 30. Rxf6+ {[%clk 0:00:45]}  Kg8 {[%clk 0:00:26]} 31. Rf8+ {[%clk 0:00:45]}  Kxf8 {[%clk 0:00:25]} 32. Qxg7+ {[%clk 0:00:45]}  Ke8 {[%clk 0:00:25]} 33. Bf6 {[%clk 0:00:45]}  Kd7 {[%clk 0:00:11]} 34. Qxe7+ {[%clk 0:00:44]}  Kc6 {[%clk 0:00:11]} 35. Qe6+ {[%clk 0:00:45]}  Kc7 {[%clk 0:00:11]} 36. Be5+ {[%clk 0:00:43]}  Kd8 {[%clk 0:00:10]} 37. Bd6 {[%clk 0:00:40]}  Bc6 {[%clk 0:00:07]} 38. Qe7+ {[%clk 0:00:40]}  Kc8 {[%clk 0:00:08]} 39. Qc7# {[%clk 0:00:41]} 1-0


[Site "https://www.chess.com"]

[Event "Titled Tuesday Blitz August 3 2021"]
[White "Wilson, Elvin"]
[Black "De Silva, L M S T"]
[WhiteFideId "2014874"]
[BlackFideId "9953698"]
[WhiteElo "2308"]
[BlackElo "1621"]
[Result "0-1"]
[Round "02"]
[TimeControl "180+1"]
[Date "2021.08.03"]
[WhiteClock "0:00:11"]
[BlackClock "0:01:38"]

1. c4 {[%clk 0:03:00]}  e5 {[%clk 0:03:00]} 2. g3 {[%clk 0:03:00]}  Nf6 {[%clk 0:03:00]} 3. Bg2 {[%clk 0:03:00]}  d5 {[%clk 0:03:00]} 4. cxd5 {[%clk 0:03:00]}  Nxd5 {[%clk 0:03:01]} 5. Nc3 {[%clk 0:03:00]}  Nb6 {[%clk 0:03:01]} 6. e3 {[%clk 0:03:01]}  Be7 {[%clk 0:03:01]} 7. Nge2 {[%clk 0:03:01]}  O-O {[%clk 0:03:01]} 8. O-O {[%clk 0:03:01]}  c5 {[%clk 0:03:00]} 9. f4 {[%clk 0:03:02]}  N8d7 {[%clk 0:02:58]} 10. fxe5 {[%clk 0:02:57]}  Nxe5 {[%clk 0:02:58]} 11. d4 {[%clk 0:02:57]}  cxd4 {[%clk 0:02:58]} 12. exd4 {[%clk 0:02:58]}  Nec4 {[%clk 0:02:54]} 13. b3 {[%clk 0:02:52]}  Nd6 {[%clk 0:02:53]} 14. Bf4 {[%clk 0:02:44]}  Bf6 {[%clk 0:02:47]} 15. Qd2 {[%clk 0:02:39]}  Bg4 {[%clk 0:02:18]} 16. Bxd6 {[%clk 0:02:12]}  Bxe2 {[%clk 0:02:16]} 17. Bxf8 {[%clk 0:02:00]}  Bxf1 {[%clk 0:02:13]} 18. Bc5 {[%clk 0:01:29]}  Bxg2 {[%clk 0:02:10]} 19. Kxg2 {[%clk 0:01:28]}  Nd5 {[%clk 0:02:10]} 20. Ne4 {[%clk 0:01:28]}  b6 {[%clk 0:02:07]} 21. Bd6 {[%clk 0:01:07]}  Qd7 {[%clk 0:02:06]} 22. Rf1 {[%clk 0:00:59]}  Re8 {[%clk 0:02:04]} 23. Nxf6+ {[%clk 0:00:57]}  Nxf6 {[%clk 0:02:04]} 24. Be5 {[%clk 0:00:57]}  Rxe5 {[%clk 0:02:03]} 25. Rf2 {[%clk 0:00:15]}  Qd5+ {[%clk 0:01:55]} 26. Kg1 {[%clk 0:00:14]}  Re4 {[%clk 0:01:40]} 27. Qc3 {[%clk 0:00:11]}  Qxd4 {[%clk 0:01:38]} 0-1


[Site "https://www.chess.com"]

[Event "Titled Tuesday Blitz August 3 2021"]
[White "Zhao, Erick"]
[Black "Samadov, Read"]
[WhiteFideId "30946930"]
[BlackFideId "13417444"]
[WhiteElo "2524"]
[BlackElo "2084"]
[Result "0-1"]
[Round "02"]
[TimeControl "180+1"]
[Date "2021.08.03"]
[WhiteClock "0:00:10"]
[BlackClock "0:00:04"]

1. e4 {[%clk 0:03:00]}  c5 {[%clk 0:02:59]} 2. Nf3 {[%clk 0:03:00]}  d6 {[%clk 0:02:57]} 3. d4 {[%clk 0:03:00]}  cxd4 {[%clk 0:02:58]} 4. Nxd4 {[%clk 0:03:00]}  Nf6 {[%clk 0:02:58]} 5. Nc3 {[%clk 0:03:01]}  a6 {[%clk 0:02:58]} 6. h3 {[%clk 0:03:01]}  e6 {[%clk 0:02:57]} 7. g4 {[%clk 0:03:02]}  Be7 {[%clk 0:02:58]} 8. Bg2 {[%clk 0:03:02]}  Nfd7 {[%clk 0:02:58]} 9. Be3 {[%clk 0:03:03]}  b5 {[%clk 0:02:56]} 10. e5 {[%clk 0:02:48]}  d5 {[%clk 0:02:55]} 11. Nxd5 {[%clk 0:02:36]}  exd5 {[%clk 0:02:51]} 12. Bxd5 {[%clk 0:02:31]}  Nb6 {[%clk 0:02:42]} 13. Bxa8 {[%clk 0:02:27]}  Nxa8 {[%clk 0:02:43]} 14. Qf3 {[%clk 0:02:24]}  Nc7 {[%clk 0:02:31]} 15. O-O-O {[%clk 0:02:22]}  Qd5 {[%clk 0:02:10]} 16. Qxd5 {[%clk 0:01:58]}  Nxd5 {[%clk 0:02:10]} 17. Nxb5 {[%clk 0:01:57]}  Nxe3 {[%clk 0:01:43]} 18. Nc7+ {[%clk 0:01:54]}  Kf8 {[%clk 0:01:43]} 19. fxe3 {[%clk 0:01:54]}  Nc6 {[%clk 0:01:42]} 20. Rhf1 {[%clk 0:01:41]}  Nxe5 {[%clk 0:01:39]} 21. Rd5 {[%clk 0:01:21]}  Nc6 {[%clk 0:01:36]} 22. e4 {[%clk 0:01:05]}  h6 {[%clk 0:01:29]} 23. e5 {[%clk 0:01:03]}  Bg5+ {[%clk 0:01:27]} 24. Kb1 {[%clk 0:01:02]}  Ke7 {[%clk 0:01:25]} 25. Rc5 {[%clk 0:00:56]}  Bd7 {[%clk 0:01:05]} 26. Nd5+ {[%clk 0:00:53]}  Ke6 {[%clk 0:01:05]} 27. Nc7+ {[%clk 0:00:54]}  Ke7 {[%clk 0:01:04]} 28. Nd5+ {[%clk 0:00:38]}  Ke6 {[%clk 0:00:49]} 29. Nb6 {[%clk 0:00:37]}  Be7 {[%clk 0:00:41]} 30. Nxd7 {[%clk 0:00:24]}  Kxd7 {[%clk 0:00:40]} 31. Rc4 {[%clk 0:00:11]}  Nxe5 {[%clk 0:00:37]} 32. Rd4+ {[%clk 0:00:10]}  Ke6 {[%clk 0:00:36]} 33. c4 {[%clk 0:00:09]}  h5 {[%clk 0:00:33]} 34. a3 {[%clk 0:00:05]}  hxg4 {[%clk 0:00:33]} 35. hxg4 {[%clk 0:00:06]}  Rh2 {[%clk 0:00:32]} 36. Re4 {[%clk 0:00:06]}  f6 {[%clk 0:00:30]} 37. Rd1 {[%clk 0:00:05]}  Rg2 {[%clk 0:00:27]} 38. b4 {[%clk 0:00:02]}  g6 {[%clk 0:00:26]} 39. c5 {[%clk 0:00:02]}  f5 {[%clk 0:00:25]} 40. gxf5+ {[%clk 0:00:03]}  gxf5 {[%clk 0:00:26]} 41. Re3 {[%clk 0:00:03]}  f4 {[%clk 0:00:25]} 42. Re4 {[%clk 0:00:03]}  f3 {[%clk 0:00:24]} 43. Rde1 {[%clk 0:00:03]}  Bf6 {[%clk 0:00:23]} 44. Rf4 {[%clk 0:00:03]}  f2 {[%clk 0:00:19]} 45. Rf1 {[%clk 0:00:03]}  Nd3 {[%clk 0:00:19]} 46. Re4+ {[%clk 0:00:02]}  Kd5 {[%clk 0:00:18]} 47. Re2 {[%clk 0:00:03]}  Bd4 {[%clk 0:00:14]} 48. Kc2 {[%clk 0:00:03]}  Nf4 {[%clk 0:00:13]} 49. Rd2 {[%clk 0:00:03]}  Kc4 {[%clk 0:00:11]} 50. c6 {[%clk 0:00:03]}  Nd5 {[%clk 0:00:11]} 51. a4 {[%clk 0:00:02]}  Nxb4+ {[%clk 0:00:11]} 52. Kd1 {[%clk 0:00:03]}  Nxc6 {[%clk 0:00:12]} 53. Ke2 {[%clk 0:00:04]}  Rg1 {[%clk 0:00:10]} 54. Rc2+ {[%clk 0:00:03]}  Kd5 {[%clk 0:00:10]} 55. Rcc1 {[%clk 0:00:03]}  Rxf1 {[%clk 0:00:09]} 56. Rxf1 {[%clk 0:00:04]}  Ne5 {[%clk 0:00:09]} 57. Rd1 {[%clk 0:00:05]}  Kc4 {[%clk 0:00:09]} 58. Kf1 {[%clk 0:00:06]}  Nc6 {[%clk 0:00:08]} 59. Rc1+ {[%clk 0:00:06]}  Kd5 {[%clk 0:00:08]} 60. Rb1 {[%clk 0:00:07]}  a5 {[%clk 0:00:08]} 61. Rb5+ {[%clk 0:00:07]}  Kc4 {[%clk 0:00:08]} 62. Ke2 {[%clk 0:00:08]}  Bc5 {[%clk 0:00:05]} 63. Rb1 {[%clk 0:00:07]}  Nb4 {[%clk 0:00:04]} 64. Rc1+ {[%clk 0:00:07]}  Kd5 {[%clk 0:00:04]} 65. Rd1+ {[%clk 0:00:07]}  Kc6 {[%clk 0:00:05]} 66. Rc1 {[%clk 0:00:08]}  Nd5 {[%clk 0:00:05]} 67. Rc4 {[%clk 0:00:08]}  Nb6 {[%clk 0:00:05]} 68. Rf4 {[%clk 0:00:07]}  Kd5 {[%clk 0:00:05]} 69. Rf5+ {[%clk 0:00:08]}  Kc4 {[%clk 0:00:05]} 70. Rf4+ {[%clk 0:00:08]}  Bd4 {[%clk 0:00:05]} 71. Rg4 {[%clk 0:00:07]}  Nxa4 {[%clk 0:00:05]} 72. Rg5 {[%clk 0:00:08]}  Nc5 {[%clk 0:00:05]} 73. Rg4 {[%clk 0:00:09]}  a4 {[%clk 0:00:05]} 74. Rg3 {[%clk 0:00:10]}  Kb4 {[%clk 0:00:04]} 75. Rg4 {[%clk 0:00:09]}  Nb3 {[%clk 0:00:05]} 76. Rg8 {[%clk 0:00:10]}  a3 {[%clk 0:00:05]} 77. Rb8+ {[%clk 0:00:11]}  Kc3 {[%clk 0:00:05]} 78. Ra8 {[%clk 0:00:11]}  Kb2 {[%clk 0:00:05]} 79. Rf8 {[%clk 0:00:08]}  a2 {[%clk 0:00:05]} 80. Ra8 {[%clk 0:00:09]}  a1=Q {[%clk 0:00:05]} 81. Rxa1 {[%clk 0:00:10]}  Kxa1 {[%clk 0:00:05]} 82. Kd3 {[%clk 0:00:10]}  f1=Q+ {[%clk 0:00:04]} 0-1


[Site "https://www.chess.com"]

[Event "Titled Tuesday Blitz August 3 2021"]
[White "Zhigalko, Sergei"]
[Black "Dowgird, Filip"]
[WhiteFideId "13502956"]
[BlackFideId "1121235"]
[WhiteElo "2662"]
[BlackElo "2209"]
[Result "1-0"]
[Round "02"]
[TimeControl "180+1"]
[Date "2021.08.03"]
[WhiteClock "0:00:05"]
[BlackClock "0:00:15"]

1. e4 {[%clk 0:03:00]}  Nf6 {[%clk 0:03:00]} 2. e5 {[%clk 0:03:00]}  Nd5 {[%clk 0:03:00]} 3. Nf3 {[%clk 0:03:01]}  Nb6 {[%clk 0:02:59]} 4. d4 {[%clk 0:03:01]}  d5 {[%clk 0:03:00]} 5. Bd3 {[%clk 0:03:02]}  Bg4 {[%clk 0:03:00]} 6. h3 {[%clk 0:03:02]}  Bxf3 {[%clk 0:03:00]} 7. Qxf3 {[%clk 0:03:03]}  e6 {[%clk 0:03:00]} 8. O-O {[%clk 0:03:03]}  c5 {[%clk 0:03:01]} 9. dxc5 {[%clk 0:03:04]}  N6d7 {[%clk 0:03:00]} 10. Re1 {[%clk 0:02:55]}  Nc6 {[%clk 0:03:00]} 11. Qg3 {[%clk 0:02:48]}  Nxc5 {[%clk 0:03:00]} 12. Nc3 {[%clk 0:02:48]}  Nxd3 {[%clk 0:02:54]} 13. cxd3 {[%clk 0:02:48]}  Rc8 {[%clk 0:02:54]} 14. Nb5 {[%clk 0:02:44]}  a6 {[%clk 0:02:48]} 15. Nd6+ {[%clk 0:02:44]}  Bxd6 {[%clk 0:02:48]} 16. Qxg7 {[%clk 0:02:40]}  Nxe5 {[%clk 0:02:37]} 17. Qxh8+ {[%clk 0:02:30]}  Kd7 {[%clk 0:02:33]} 18. Qxd8+ {[%clk 0:02:02]}  Rxd8 {[%clk 0:02:26]} 19. Rd1 {[%clk 0:01:42]}  Rc8 {[%clk 0:02:18]} 20. Be3 {[%clk 0:01:37]}  Rc2 {[%clk 0:02:15]} 21. Rab1 {[%clk 0:01:37]}  b5 {[%clk 0:02:06]} 22. f4 {[%clk 0:00:30]}  Ng6 {[%clk 0:02:01]} 23. g3 {[%clk 0:00:30]}  Rc8 {[%clk 0:01:58]} 24. Rbc1 {[%clk 0:00:29]}  Rg8 {[%clk 0:01:57]} 25. Kf2 {[%clk 0:00:29]}  h5 {[%clk 0:01:58]} 26. Kf3 {[%clk 0:00:29]}  Ne7 {[%clk 0:01:49]} 27. g4 {[%clk 0:00:26]}  Nc6 {[%clk 0:01:45]} 28. a3 {[%clk 0:00:19]}  Rh8 {[%clk 0:01:39]} 29. Rh1 {[%clk 0:00:18]}  e5 {[%clk 0:01:17]} 30. fxe5 {[%clk 0:00:13]}  Nxe5+ {[%clk 0:01:17]} 31. Ke2 {[%clk 0:00:13]}  hxg4 {[%clk 0:01:17]} 32. hxg4 {[%clk 0:00:13]}  Rxh1 {[%clk 0:01:17]} 33. Rxh1 {[%clk 0:00:14]}  Nxg4 {[%clk 0:01:17]} 34. Bd4 {[%clk 0:00:09]}  a5 {[%clk 0:01:07]} 35. Rh8 {[%clk 0:00:07]}  a4 {[%clk 0:01:02]} 36. Ra8 {[%clk 0:00:07]}  f6 {[%clk 0:01:01]} 37. Ra7+ {[%clk 0:00:06]}  Kc6 {[%clk 0:01:01]} 38. Ra6+ {[%clk 0:00:07]}  Kd7 {[%clk 0:01:01]} 39. Rb6 {[%clk 0:00:07]}  Ne5 {[%clk 0:00:51]} 40. Rxb5 {[%clk 0:00:07]}  Nc6 {[%clk 0:00:47]} 41. Bxf6 {[%clk 0:00:05]}  Be7 {[%clk 0:00:46]} 42. Bg7 {[%clk 0:00:04]}  Bf8 {[%clk 0:00:46]} 43. Bh8 {[%clk 0:00:04]}  d4 {[%clk 0:00:38]} 44. Rb7+ {[%clk 0:00:03]}  Ke6 {[%clk 0:00:37]} 45. Rh7 {[%clk 0:00:04]}  Bc5 {[%clk 0:00:35]} 46. Rh5 {[%clk 0:00:04]}  Bd6 {[%clk 0:00:33]} 47. Rh6+ {[%clk 0:00:04]}  Kd5 {[%clk 0:00:33]} 48. Rh5+ {[%clk 0:00:04]}  Ke6 {[%clk 0:00:33]} 49. Kd2 {[%clk 0:00:05]}  Bf4+ {[%clk 0:00:30]} 50. Kc2 {[%clk 0:00:05]}  Bd6 {[%clk 0:00:30]} 51. Rh6+ {[%clk 0:00:05]}  Kd5 {[%clk 0:00:30]} 52. Rh7 {[%clk 0:00:06]}  Kc5 {[%clk 0:00:24]} 53. Bg7 {[%clk 0:00:06]}  Bf4 {[%clk 0:00:23]} 54. Rh5+ {[%clk 0:00:07]}  Kb6 {[%clk 0:00:23]} 55. Rd5 {[%clk 0:00:06]}  Be3 {[%clk 0:00:23]} 56. Bf6 {[%clk 0:00:04]}  Ka6 {[%clk 0:00:23]} 57. Kd1 {[%clk 0:00:04]}  Kb6 {[%clk 0:00:23]} 58. Be5 {[%clk 0:00:03]}  Ka6 {[%clk 0:00:23]} 59. Bg3 {[%clk 0:00:03]}  Na5 {[%clk 0:00:22]} 60. Kc2 {[%clk 0:00:03]}  Nb3 {[%clk 0:00:22]} 61. Rf5 {[%clk 0:00:03]}  Kb6 {[%clk 0:00:22]} 62. Be5 {[%clk 0:00:03]}  Na1+ {[%clk 0:00:22]} 63. Kd1 {[%clk 0:00:03]}  Nb3 {[%clk 0:00:23]} 64. Rh5 {[%clk 0:00:03]}  Nc5 {[%clk 0:00:22]} 65. Kc2 {[%clk 0:00:03]}  Nb3 {[%clk 0:00:23]} 66. Bg3 {[%clk 0:00:03]}  Nc5 {[%clk 0:00:21]} 67. Be1 {[%clk 0:00:04]}  Nb3 {[%clk 0:00:20]} 68. Bb4 {[%clk 0:00:04]}  Bc1 {[%clk 0:00:20]} 69. Rh6+ {[%clk 0:00:03]}  Kb5 {[%clk 0:00:21]} 70. Rh5+ {[%clk 0:00:04]}  Kb6 {[%clk 0:00:21]} 71. Rf5 {[%clk 0:00:04]}  Be3 {[%clk 0:00:20]} 72. Re5 {[%clk 0:00:04]}  Kc6 {[%clk 0:00:20]} 73. Re6+ {[%clk 0:00:04]}  Kb5 {[%clk 0:00:20]} 74. Kd1 {[%clk 0:00:04]}  Bc1 {[%clk 0:00:19]} 75. Re2 {[%clk 0:00:03]}  Kb6 {[%clk 0:00:17]} 76. Be1 {[%clk 0:00:03]}  Kb5 {[%clk 0:00:17]} 77. Bf2 {[%clk 0:00:04]}  Kb6 {[%clk 0:00:16]} 78. Re6+ {[%clk 0:00:03]}  Kb5 {[%clk 0:00:16]} 79. Re5+ {[%clk 0:00:04]}  Kb6 {[%clk 0:00:17]} 80. Bxd4+ {[%clk 0:00:04]}  Nxd4 {[%clk 0:00:15]} 81. Kxc1 {[%clk 0:00:04]}  Nb3+ {[%clk 0:00:15]} 82. Kd1 {[%clk 0:00:04]}  Nc5 {[%clk 0:00:15]} 83. Rxc5 {[%clk 0:00:04]}  Kxc5 {[%clk 0:00:16]} 84. Kc2 {[%clk 0:00:04]}  Kd4 {[%clk 0:00:15]} 85. Kd2 {[%clk 0:00:05]} 1-0


[Site "https://www.chess.com"]